[Event "*** Titled Tuesday Blitz"]
[Site "Chess.com"]
[Date "2021.02.02"]
[Round "1"]
[White "CzechmVIII"]
[Black "Lion-Al-Messi"]
[Result "1/2-1/2"]
[WhiteElo "2274"]
[BlackElo "2566"]
[TimeControl "180+1"]
[EndTime "10:08:11 PST"]
[Termination "Game drawn - insufficient material"]

1. e4 {[%clk 0:03:00.9]} 1... e6 {[%clk 0:02:58.8]} 2. d4 {[%clk 0:03:00.4]}
2... d5 {[%clk 0:02:58.7]} 3. Nc3 {[%clk 0:03:01]} 3... Nf6 {[%clk 0:02:58]} 4.
Bg5 {[%clk 0:03:00.2]} 4... dxe4 {[%clk 0:02:57.9]} 5. Nxe4 {[%clk 0:02:59.5]}
5... Be7 {[%clk 0:02:58.3]} 6. Bxf6 {[%clk 0:02:59.6]} 6... gxf6 {[%clk
0:02:58.6]} 7. Nf3 {[%clk 0:02:59.7]} 7... f5 {[%clk 0:02:57.3]} 8. Nc3 {[%clk
0:02:59.3]} 8... a6 {[%clk 0:02:56.5]} 9. g3 {[%clk 0:02:59.1]} 9... b5 {[%clk
0:02:56.5]} 10. Bg2 {[%clk 0:02:59.3]} 10... Bb7 {[%clk 0:02:56.5]} 11. O-O
{[%clk 0:02:57.4]} 11... O-O {[%clk 0:02:56.1]} 12. Qe2 {[%clk 0:02:45.7]} 12...
b4 {[%clk 0:02:55]} 13. Na4 {[%clk 0:02:41.5]} 13... Nd7 {[%clk 0:02:52.9]} 14.
Rad1 {[%clk 0:02:39.5]} 14... Nf6 {[%clk 0:02:50.7]} 15. Nc5 {[%clk 0:02:34]}
15... Bxc5 {[%clk 0:02:39.6]} 16. dxc5 {[%clk 0:02:34]} 16... Qe7 {[%clk
0:02:39.7]} 17. Qc4 {[%clk 0:02:09.6]} 17... a5 {[%clk 0:02:38.4]} 18. Ne5
{[%clk 0:02:03.6]} 18... Bxg2 {[%clk 0:02:26.5]} 19. Kxg2 {[%clk 0:02:04.5]}
19... Ne4 {[%clk 0:02:23.9]} 20. Rd7 {[%clk 0:01:25.8]} 20... Qxc5 {[%clk
0:02:04.6]} 21. Qxc5 {[%clk 0:01:25.3]} 21... Nxc5 {[%clk 0:02:05.5]} 22. Rxc7
{[%clk 0:01:25.2]} 22... Ne4 {[%clk 0:02:04.2]} 23. Rd1 {[%clk 0:01:18.1]} 23...
Rad8 {[%clk 0:01:58.1]} 24. Rxd8 {[%clk 0:01:13.8]} 24... Rxd8 {[%clk 0:01:59]}
25. Nxf7 {[%clk 0:01:13.3]} 25... Rd2 {[%clk 0:01:58.9]} 26. Nh6+ {[%clk
0:01:08.1]} 26... Kf8 {[%clk 0:01:59.1]} 27. Rf7+ {[%clk 0:00:57.7]} 27... Ke8
{[%clk 0:01:58.6]} 28. Rxh7 {[%clk 0:00:58]} 28... Rxf2+ {[%clk 0:01:58.2]} 29.
Kg1 {[%clk 0:00:57.8]} 29... Rxc2 {[%clk 0:01:58.4]} 30. Ra7 {[%clk 0:00:51.8]}
30... Rxb2 {[%clk 0:01:39.8]} 31. Rxa5 {[%clk 0:00:51.1]} 31... Nd2 {[%clk
0:01:36.2]} 32. h3 {[%clk 0:00:32.5]} 32... Nf3+ {[%clk 0:01:35.5]} 33. Kf1
{[%clk 0:00:32.9]} 33... Kf8 {[%clk 0:01:30.5]} 34. Ra7 {[%clk 0:00:25.6]} 34...
Nd2+ {[%clk 0:01:24.1]} 35. Ke1 {[%clk 0:00:25.1]} 35... Ne4 {[%clk 0:01:24.6]}
36. g4 {[%clk 0:00:24.1]} 36... f4 {[%clk 0:01:23.5]} 37. Rf7+ {[%clk
0:00:22.7]} 37... Ke8 {[%clk 0:01:23.6]} 38. Rxf4 {[%clk 0:00:22.9]} 38... Nc3
{[%clk 0:01:12]} 39. g5 {[%clk 0:00:22.5]} 39... Nxa2 {[%clk 0:01:11.1]} 40. g6
{[%clk 0:00:22.2]} 40... Rg2 {[%clk 0:01:10.9]} 41. Rg4 {[%clk 0:00:22.2]} 41...
Rxg4 {[%clk 0:01:09.4]} 42. Nxg4 {[%clk 0:00:20.2]} 42... Nc3 {[%clk 0:00:53.2]}
43. Ne5 {[%clk 0:00:18.9]} 43... Kf8 {[%clk 0:00:47.3]} 44. Nd3 {[%clk
0:00:16.7]} 44... Nd5 {[%clk 0:00:39.7]} 45. h4 {[%clk 0:00:12.8]} 45... Kg7
{[%clk 0:00:40]} 46. h5 {[%clk 0:00:12.6]} 46... Kh6 {[%clk 0:00:40.5]} 47. Kd2
{[%clk 0:00:12]} 47... b3 {[%clk 0:00:33.1]} 48. Kc1 {[%clk 0:00:09.2]} 48...
Kxh5 {[%clk 0:00:20.3]} 49. g7 {[%clk 0:00:09.1]} 49... Ne7 {[%clk 0:00:19]} 50.
Kb2 {[%clk 0:00:09.4]} 50... Kg6 {[%clk 0:00:18.8]} 51. Kxb3 {[%clk 0:00:05.7]}
51... Kxg7 {[%clk 0:00:18.8]} 52. Kc4 {[%clk 0:00:06]} 52... Nf5 {[%clk
0:00:15.5]} 53. Kc5 {[%clk 0:00:03.4]} 53... Kf6 {[%clk 0:00:14.2]} 54. Kc4
{[%clk 0:00:02.2]} 54... Nd6+ {[%clk 0:00:13.4]} 55. Kd4 {[%clk 0:00:02.2]}
55... Nf7 {[%clk 0:00:12.5]} 56. Nf4 {[%clk 0:00:01.6]} 56... e5+ {[%clk
0:00:12.3]} 57. Ke3 {[%clk 0:00:02]} 57... Kf5 {[%clk 0:00:11.9]} 58. Nd3 {[%clk
0:00:02.2]} 58... e4 {[%clk 0:00:10.7]} 59. Nc5 {[%clk 0:00:02.5]} 59... Nd6
{[%clk 0:00:10.9]} 60. Nxe4 {[%clk 0:00:03]} 1/2-1/2

[Event "*** Titled Tuesday Blitz"]
[Site "Chess.com"]
[Date "2021.02.02"]
[Round "1"]
[White "night_player"]
[Black "Sergey85Rodchenkov"]
[Result "1-0"]
[WhiteElo "2279"]
[BlackElo "2532"]
[TimeControl "180+1"]
[EndTime "10:08:11 PST"]
[Termination "night_player won by resignation"]

1. e4 {[%clk 0:03:00.5]} 1... c5 {[%clk 0:02:59.6]} 2. c3 {[%clk 0:03:00.2]}
2... d5 {[%clk 0:02:59.1]} 3. exd5 {[%clk 0:03:00]} 3... Qxd5 {[%clk 0:02:59.1]}
4. d4 {[%clk 0:03:00.9]} 4... Nf6 {[%clk 0:02:58.2]} 5. Nf3 {[%clk 0:03:01.2]}
5... Nc6 {[%clk 0:02:57.6]} 6. Be3 {[%clk 0:02:59.6]} 6... cxd4 {[%clk
0:02:52.9]} 7. cxd4 {[%clk 0:02:59.7]} 7... Bg4 {[%clk 0:02:53.5]} 8. Be2 {[%clk
0:02:59.2]} 8... e6 {[%clk 0:02:52.9]} 9. O-O {[%clk 0:02:59.4]} 9... Qa5 {[%clk
0:02:49.2]} 10. a3 {[%clk 0:02:54.6]} 10... Be7 {[%clk 0:02:45.9]} 11. Qb3
{[%clk 0:02:54.6]} 11... Qb6 {[%clk 0:02:39]} 12. Qxb6 {[%clk 0:02:49.8]} 12...
axb6 {[%clk 0:02:38.8]} 13. h3 {[%clk 0:02:50.1]} 13... Bh5 {[%clk 0:02:37.7]}
14. g4 {[%clk 0:02:49.3]} 14... Bg6 {[%clk 0:02:37.6]} 15. Ne5 {[%clk 0:02:50]}
15... O-O {[%clk 0:02:35.7]} 16. Bf3 {[%clk 0:02:43.4]} 16... Nd5 {[%clk
0:02:28.4]} 17. Nxg6 {[%clk 0:02:39.5]} 17... hxg6 {[%clk 0:02:27.6]} 18. Nc3
{[%clk 0:02:39.8]} 18... Nxe3 {[%clk 0:02:24]} 19. fxe3 {[%clk 0:02:40.7]} 19...
Rac8 {[%clk 0:02:19.8]} 20. Rac1 {[%clk 0:02:38]} 20... Rfd8 {[%clk 0:02:14.5]}
21. Kf2 {[%clk 0:02:24.7]} 21... Bf6 {[%clk 0:02:03.1]} 22. Ne4 {[%clk
0:02:19.7]} 22... Bh4+ {[%clk 0:01:59.8]} 23. Ke2 {[%clk 0:02:18.5]} 23... Be7
{[%clk 0:01:59.7]} 24. Rc3 {[%clk 0:02:08.7]} 24... b5 {[%clk 0:01:43.6]} 25. b4
{[%clk 0:01:59.5]} 25... Na7 {[%clk 0:01:33.3]} 26. Rfc1 {[%clk 0:01:57.3]}
26... b6 {[%clk 0:01:32.1]} 27. Nf2 {[%clk 0:01:52]} 27... Kf8 {[%clk
0:01:28.4]} 28. Nd3 {[%clk 0:01:34.1]} 28... Bd6 {[%clk 0:01:26.8]} 29. Bb7
{[%clk 0:01:27.4]} 29... Rxc3 {[%clk 0:01:21.9]} 30. Rxc3 {[%clk 0:01:27.3]}
30... Rb8 {[%clk 0:01:21.8]} 31. Bf3 {[%clk 0:01:23.4]} 31... Ke7 {[%clk
0:01:19]} 32. e4 {[%clk 0:01:07.1]} 32... Rc8 {[%clk 0:01:17]} 33. Rxc8 {[%clk
0:01:05.9]} 33... Nxc8 {[%clk 0:01:16.4]} 34. e5 {[%clk 0:01:02.8]} 34... Bc7
{[%clk 0:01:16]} 35. Ke3 {[%clk 0:01:02.3]} 35... f6 {[%clk 0:01:12.7]} 36. Ke4
{[%clk 0:00:58]} 36... f5+ {[%clk 0:01:09.1]} 37. Kf4 {[%clk 0:00:55.7]} 37...
Kf7 {[%clk 0:01:05.3]} 38. Ke3 {[%clk 0:00:49.1]} 38... Bd8 {[%clk 0:00:59.1]}
39. d5 {[%clk 0:00:44.6]} 39... exd5 {[%clk 0:00:55.5]} 40. Bxd5+ {[%clk
0:00:44]} 40... Ke7 {[%clk 0:00:52.7]} 41. Kd4 {[%clk 0:00:40.6]} 41... Kd7
{[%clk 0:00:47.2]} 42. Bf7 {[%clk 0:00:36.9]} 42... Ne7 {[%clk 0:00:46.3]} 43.
Nf4 {[%clk 0:00:34]} 43... g5 {[%clk 0:00:44.8]} 44. Nh5 {[%clk 0:00:31.4]}
44... f4 {[%clk 0:00:39.9]} 45. Nxg7 {[%clk 0:00:30.4]} 45... Bc7 {[%clk
0:00:39]} 46. Ne6 {[%clk 0:00:27.5]} 46... Nc6+ {[%clk 0:00:36.4]} 47. Ke4
{[%clk 0:00:27.7]} 47... Bxe5 {[%clk 0:00:32.6]} 48. Nxg5 {[%clk 0:00:25.7]}
48... Bb2 {[%clk 0:00:28.5]} 49. Kxf4 {[%clk 0:00:21.2]} 49... Bxa3 {[%clk
0:00:27.5]} 50. h4 {[%clk 0:00:21.6]} 50... Ke7 {[%clk 0:00:27.3]} 51. h5 {[%clk
0:00:21]} 51... Bxb4 {[%clk 0:00:25.2]} 52. Kf5 {[%clk 0:00:18.6]} 52... Nd4+
{[%clk 0:00:24.1]} 53. Kg6 {[%clk 0:00:18.3]} 53... Bd2 {[%clk 0:00:20.5]} 54.
Ne4 {[%clk 0:00:17.2]} 54... Nf3 {[%clk 0:00:18.1]} 55. Nxd2 {[%clk 0:00:15.7]}
55... Ne5+ {[%clk 0:00:15.5]} 56. Kg7 {[%clk 0:00:14.9]} 56... Nxf7 {[%clk
0:00:15.3]} 57. h6 {[%clk 0:00:15.3]} 57... b4 {[%clk 0:00:15.5]} 58. h7 {[%clk
0:00:15.5]} 58... b5 {[%clk 0:00:15.4]} 59. g5 {[%clk 0:00:15.8]} 1-0

[Event "*** Titled Tuesday Blitz"]
[Site "Chess.com"]
[Date "2021.02.02"]
[Round "1"]
[White "dopolian"]
[Black "BrandonJacobson"]
[Result "0-1"]
[WhiteElo "2440"]
[BlackElo "2860"]
[TimeControl "180+1"]
[EndTime "10:08:12 PST"]
[Termination "BrandonJacobson won by resignation"]

1. e4 {[%clk 0:02:58.3]} 1... e5 {[%clk 0:02:54.9]} 2. Nf3 {[%clk 0:02:57]} 2...
Nc6 {[%clk 0:02:55.5]} 3. Bb5 {[%clk 0:02:56]} 3... a6 {[%clk 0:02:56]} 4. Ba4
{[%clk 0:02:56.2]} 4... Nf6 {[%clk 0:02:56.6]} 5. O-O {[%clk 0:02:54.8]} 5... b5
{[%clk 0:02:56]} 6. Bb3 {[%clk 0:02:53.9]} 6... Bc5 {[%clk 0:02:56.6]} 7. d3
{[%clk 0:02:51]} 7... d6 {[%clk 0:02:56.2]} 8. Nbd2 {[%clk 0:02:48.2]} 8... O-O
{[%clk 0:02:55.8]} 9. h3 {[%clk 0:02:46]} 9... h6 {[%clk 0:02:53.6]} 10. Re1
{[%clk 0:02:45.4]} 10... Re8 {[%clk 0:02:53.6]} 11. Nf1 {[%clk 0:02:45.4]} 11...
Bb7 {[%clk 0:02:54.1]} 12. Ng3 {[%clk 0:02:44.8]} 12... Na5 {[%clk 0:02:44.7]}
13. Nh2 {[%clk 0:02:31.5]} 13... Nxb3 {[%clk 0:02:38.9]} 14. axb3 {[%clk
0:02:32.4]} 14... Kh7 {[%clk 0:02:39.5]} 15. Ng4 {[%clk 0:02:30.2]} 15... Ng8
{[%clk 0:02:33.1]} 16. Qf3 {[%clk 0:02:24]} 16... Rf8 {[%clk 0:02:31.1]} 17. Nf5
{[%clk 0:02:02.7]} 17... Bc8 {[%clk 0:02:20.6]} 18. c3 {[%clk 0:01:55.8]} 18...
Bxf5 {[%clk 0:02:15.5]} 19. exf5 {[%clk 0:01:44.6]} 19... Nf6 {[%clk 0:02:15.8]}
20. Be3 {[%clk 0:01:19.4]} 20... Bxe3 {[%clk 0:02:11.9]} 21. fxe3 {[%clk
0:01:17.2]} 21... Nxg4 {[%clk 0:01:52.4]} 22. Qxg4 {[%clk 0:01:18.1]} 22... d5
{[%clk 0:01:48.8]} 23. Rf1 {[%clk 0:01:10.8]} 23... f6 {[%clk 0:01:46.3]} 24. e4
{[%clk 0:01:06.9]} 24... dxe4 {[%clk 0:01:36]} 25. dxe4 {[%clk 0:01:06.7]} 25...
Qd2 {[%clk 0:01:21.7]} 26. Rf2 {[%clk 0:01:04.6]} 26... Qe3 {[%clk 0:01:19.3]}
27. Qe2 {[%clk 0:00:51.2]} 27... Qb6 {[%clk 0:01:14.5]} 28. b4 {[%clk
0:00:41.8]} 28... Rfd8 {[%clk 0:01:13.5]} 29. Kh2 {[%clk 0:00:40.5]} 29... Rd6
{[%clk 0:01:09.6]} 30. Rff1 {[%clk 0:00:37.8]} 30... Rad8 {[%clk 0:01:07.8]} 31.
Rfd1 {[%clk 0:00:37.3]} 31... Qc6 {[%clk 0:01:03.2]} 32. Rxd6 {[%clk 0:00:35.5]}
32... Qxd6 {[%clk 0:01:04.1]} 33. Qe3 {[%clk 0:00:31.3]} 33... Qc6 {[%clk
0:00:50.9]} 34. Kh1 {[%clk 0:00:22.5]} 34... Rd6 {[%clk 0:00:50.9]} 35. Kh2
{[%clk 0:00:21.8]} 35... Qc4 {[%clk 0:00:45.8]} 36. Qc5 {[%clk 0:00:13.9]} 36...
Qxe4 {[%clk 0:00:41.6]} 37. Qxc7 {[%clk 0:00:14.1]} 37... Rd2 {[%clk 0:00:41.9]}
38. Rg1 {[%clk 0:00:14.6]} 38... Rxb2 {[%clk 0:00:39.9]} 39. Qc8 {[%clk
0:00:04.8]} 39... Rc2 {[%clk 0:00:34.8]} 40. Qxa6 {[%clk 0:00:04.4]} 40... Qc4
{[%clk 0:00:25.8]} 41. Qe6 {[%clk 0:00:03.6]} 41... Rxc3 {[%clk 0:00:24.3]} 42.
Qxc4 {[%clk 0:00:02.5]} 42... Rxc4 {[%clk 0:00:25.2]} 43. Rd1 {[%clk 0:00:02.1]}
43... h5 {[%clk 0:00:23.3]} 44. Rd7 {[%clk 0:00:02.1]} 44... h4 {[%clk
0:00:21.6]} 45. Rb7 {[%clk 0:00:02]} 45... Rxb4 {[%clk 0:00:22]} 46. Kg1 {[%clk
0:00:02.2]} 46... Kh6 {[%clk 0:00:21.5]} 47. Kf2 {[%clk 0:00:02.2]} 47... Rf4+
{[%clk 0:00:21.2]} 48. Ke3 {[%clk 0:00:02.1]} 48... b4 {[%clk 0:00:22.1]} 49.
Rb5 {[%clk 0:00:01.2]} 49... Kg5 {[%clk 0:00:21.5]} 50. Rb7 {[%clk 0:00:01.6]}
50... Kh6 {[%clk 0:00:19.2]} 51. Rb6 {[%clk 0:00:01.6]} 51... Rxf5 {[%clk
0:00:18.7]} 52. Rxb4 {[%clk 0:00:01.6]} 52... g5 {[%clk 0:00:17.9]} 53. Rb8
{[%clk 0:00:01.9]} 53... Kg6 {[%clk 0:00:18.3]} 54. Rg8+ {[%clk 0:00:02]} 54...
Kf7 {[%clk 0:00:18.9]} 55. Rb8 {[%clk 0:00:02.3]} 55... Rf1 {[%clk 0:00:19.8]}
56. Rb7+ {[%clk 0:00:02.7]} 56... Kg6 {[%clk 0:00:20.3]} 57. Rb6 {[%clk
0:00:02.5]} 57... Rg1 {[%clk 0:00:20.8]} 58. Kf2 {[%clk 0:00:02.6]} 58... Ra1
{[%clk 0:00:21.6]} 59. Kf3 {[%clk 0:00:02.7]} 59... Ra3+ {[%clk 0:00:21.8]} 60.
Kf2 {[%clk 0:00:03.4]} 60... Ra2+ {[%clk 0:00:22.2]} 61. Kf3 {[%clk 0:00:03.9]}
61... Kf5 {[%clk 0:00:22.9]} 62. Rb3 {[%clk 0:00:03.3]} 62... e4+ {[%clk
0:00:22.7]} 63. Ke3 {[%clk 0:00:03.1]} 63... Rxg2 {[%clk 0:00:23.1]} 64. Rb5+
{[%clk 0:00:03.2]} 64... Kg6 {[%clk 0:00:23.7]} 65. Kxe4 {[%clk 0:00:03.3]}
65... Rg3 {[%clk 0:00:24.4]} 66. Rb8 {[%clk 0:00:02.1]} 66... Rxh3 {[%clk
0:00:24.9]} 67. Rg8+ {[%clk 0:00:02.3]} 67... Kf7 {[%clk 0:00:25.4]} 68. Rb8
{[%clk 0:00:02.6]} 68... Ra3 {[%clk 0:00:25.6]} 0-1

[Event "*** Titled Tuesday Blitz"]
[Site "Chess.com"]
[Date "2021.02.02"]
[Round "1"]
[White "Nikolakis2014"]
[Black "ybruned"]
[Result "1-0"]
[WhiteElo "2632"]
[BlackElo "2334"]
[TimeControl "180+1"]
[EndTime "10:08:14 PST"]
[Termination "Nikolakis2014 won by resignation"]

1. Nf3 {[%clk 0:03:00.6]} 1... Nf6 {[%clk 0:02:59.9]} 2. c4 {[%clk 0:03:00.2]}
2... b6 {[%clk 0:03:00.8]} 3. g3 {[%clk 0:02:59.5]} 3... Bb7 {[%clk 0:03:01.7]}
4. Bg2 {[%clk 0:03:00]} 4... e6 {[%clk 0:03:02.4]} 5. O-O {[%clk 0:03:00.6]}
5... Be7 {[%clk 0:03:02.5]} 6. Nc3 {[%clk 0:03:01.2]} 6... O-O {[%clk
0:03:02.8]} 7. Re1 {[%clk 0:03:01.4]} 7... d5 {[%clk 0:03:02.2]} 8. cxd5 {[%clk
0:03:00.7]} 8... Nxd5 {[%clk 0:03:01.6]} 9. e4 {[%clk 0:03:00.4]} 9... Nxc3
{[%clk 0:03:01]} 10. bxc3 {[%clk 0:03:00.6]} 10... c5 {[%clk 0:03:01.5]} 11. d4
{[%clk 0:03:00.8]} 11... cxd4 {[%clk 0:02:59.7]} 12. cxd4 {[%clk 0:03:00.5]}
12... Nd7 {[%clk 0:03:00.6]} 13. Bf4 {[%clk 0:02:51.4]} 13... Nf6 {[%clk
0:02:59.4]} 14. Ne5 {[%clk 0:02:49.8]} 14... Rc8 {[%clk 0:02:41.9]} 15. Qa4
{[%clk 0:02:42.3]} 15... a6 {[%clk 0:02:40.6]} 16. Rad1 {[%clk 0:02:40.5]} 16...
b5 {[%clk 0:02:37.7]} 17. Qb3 {[%clk 0:02:36.9]} 17... Nd7 {[%clk 0:02:26.1]}
18. d5 {[%clk 0:02:10.9]} 18... Nxe5 {[%clk 0:02:15.7]} 19. dxe6 {[%clk
0:01:44.7]} 19... Qc7 {[%clk 0:02:10.5]} 20. Rd7 {[%clk 0:01:34.5]} 20... Nxd7
{[%clk 0:01:24.5]} 21. Bxc7 {[%clk 0:01:23.1]} 21... Nc5 {[%clk 0:01:24]} 22.
exf7+ {[%clk 0:01:22.9]} 22... Rxf7 {[%clk 0:01:09.3]} 23. Qe3 {[%clk
0:01:15.3]} 23... Rxc7 {[%clk 0:01:09.1]} 24. Rd1 {[%clk 0:01:15.2]} 24... Rf8
{[%clk 0:01:00.1]} 25. h4 {[%clk 0:01:05.8]} 25... Na4 {[%clk 0:00:57.3]} 26.
Rd2 {[%clk 0:00:54.3]} 26... Bc5 {[%clk 0:00:52.3]} 27. Qg5 {[%clk 0:00:26.2]}
27... Rcf7 {[%clk 0:00:34.9]} 28. Kh2 {[%clk 0:00:23.3]} 28... Rxf2 {[%clk
0:00:19.2]} 29. Rxf2 {[%clk 0:00:20.9]} 29... Rxf2 {[%clk 0:00:15.1]} 30. Qd8+
{[%clk 0:00:20.9]} 30... Rf8 {[%clk 0:00:14.3]} 31. Qd7 {[%clk 0:00:21.1]} 31...
Ba8 {[%clk 0:00:10.9]} 32. e5 {[%clk 0:00:20.1]} 32... Rf2 {[%clk 0:00:08.7]}
33. Qe8+ {[%clk 0:00:17.9]} 33... Rf8 {[%clk 0:00:08.1]} 34. Qe6+ {[%clk
0:00:17.3]} 34... Kh8 {[%clk 0:00:08.5]} 35. Bxa8 {[%clk 0:00:17.4]} 35... Rxa8
{[%clk 0:00:08.9]} 36. Qc6 {[%clk 0:00:17.6]} 36... Rf8 {[%clk 0:00:09.2]} 37.
Qxa6 {[%clk 0:00:17.3]} 37... Nc3 {[%clk 0:00:07.1]} 38. Qc6 {[%clk 0:00:17.1]}
38... Bb4 {[%clk 0:00:06.8]} 39. e6 {[%clk 0:00:16.6]} 39... Nxa2 {[%clk
0:00:02.3]} 40. Qxb5 {[%clk 0:00:16.3]} 40... Be7 {[%clk 0:00:02]} 41. Qd7
{[%clk 0:00:15.8]} 41... Bf6 {[%clk 0:00:02.5]} 42. e7 {[%clk 0:00:15.3]} 42...
Bxe7 {[%clk 0:00:03.4]} 43. Qxe7 {[%clk 0:00:15.4]} 43... Rf2+ {[%clk
0:00:03.5]} 44. Kh3 {[%clk 0:00:15.1]} 44... h6 {[%clk 0:00:04.3]} 45. Qe8+
{[%clk 0:00:14.9]} 45... Kh7 {[%clk 0:00:04.9]} 46. Qe4+ {[%clk 0:00:15]} 46...
Kh8 {[%clk 0:00:04.1]} 47. Qd4 {[%clk 0:00:15.2]} 47... Rf6 {[%clk 0:00:03.8]}
48. Qd8+ {[%clk 0:00:14.6]} 48... Kh7 {[%clk 0:00:03.7]} 49. Qd3+ {[%clk
0:00:14.3]} 49... Kh8 {[%clk 0:00:03.9]} 50. Qc4 {[%clk 0:00:12.8]} 50... Rf2
{[%clk 0:00:02.2]} 51. Qc8+ {[%clk 0:00:11.9]} 51... Kh7 {[%clk 0:00:02.7]} 52.
Qc5 {[%clk 0:00:12.1]} 52... Kh8 {[%clk 0:00:02.8]} 53. Qxf2 {[%clk 0:00:11.7]}
1-0

[Event "*** Titled Tuesday Blitz"]
[Site "Chess.com"]
[Date "2021.02.02"]
[Round "1"]
[White "Philosopherrr"]
[Black "ohajek96"]
[Result "1-0"]
[WhiteElo "2563"]
[BlackElo "2252"]
[TimeControl "180+1"]
[EndTime "10:08:15 PST"]
[Termination "Philosopherrr won on time"]

1. e4 {[%clk 0:02:54.3]} 1... c6 {[%clk 0:02:58.9]} 2. d4 {[%clk 0:02:51.8]}
2... d5 {[%clk 0:02:58.3]} 3. e5 {[%clk 0:02:51.9]} 3... c5 {[%clk 0:02:57.5]}
4. dxc5 {[%clk 0:02:50.2]} 4... e6 {[%clk 0:02:55.2]} 5. Be3 {[%clk 0:02:43.2]}
5... Nd7 {[%clk 0:02:52.5]} 6. Bb5 {[%clk 0:02:42.3]} 6... Qa5+ {[%clk
0:02:24.8]} 7. Nc3 {[%clk 0:02:41.4]} 7... Qc7 {[%clk 0:02:11.8]} 8. Nf3 {[%clk
0:02:33.6]} 8... Bxc5 {[%clk 0:02:05.8]} 9. Bxc5 {[%clk 0:02:30.7]} 9... Qxc5
{[%clk 0:02:04.3]} 10. Kf1 {[%clk 0:02:28.1]} 10... Ne7 {[%clk 0:01:58.3]} 11.
Qd4 {[%clk 0:02:25.1]} 11... Qxd4 {[%clk 0:01:52]} 12. Nxd4 {[%clk 0:02:23.4]}
12... a6 {[%clk 0:01:51.8]} 13. Bxd7+ {[%clk 0:02:22]} 13... Bxd7 {[%clk
0:01:51.8]} 14. Nce2 {[%clk 0:02:14.8]} 14... Nc6 {[%clk 0:01:41.1]} 15. f4
{[%clk 0:02:13.2]} 15... Ke7 {[%clk 0:01:33.1]} 16. c3 {[%clk 0:02:02.4]} 16...
Nxd4 {[%clk 0:01:27.9]} 17. Nxd4 {[%clk 0:02:00.9]} 17... Rhc8 {[%clk
0:01:26.5]} 18. Ke2 {[%clk 0:01:58.7]} 18... b5 {[%clk 0:01:26.1]} 19. Kd2
{[%clk 0:01:58.8]} 19... f6 {[%clk 0:01:22.9]} 20. Rhe1 {[%clk 0:01:55.7]} 20...
Kf7 {[%clk 0:01:20.1]} 21. g4 {[%clk 0:01:53.9]} 21... Rab8 {[%clk 0:01:16.1]}
22. a3 {[%clk 0:01:50.1]} 22... fxe5 {[%clk 0:01:08.9]} 23. Rxe5 {[%clk
0:01:48.3]} 23... a5 {[%clk 0:01:04.9]} 24. f5 {[%clk 0:01:22.5]} 24... exf5
{[%clk 0:00:59.7]} 25. Rxd5 {[%clk 0:01:22.6]} 25... Be6 {[%clk 0:00:57.5]} 26.
Nxe6 {[%clk 0:01:19.5]} 26... Kxe6 {[%clk 0:00:58.4]} 27. Rxf5 {[%clk
0:01:19.1]} 27... b4 {[%clk 0:00:48.3]} 28. Re1+ {[%clk 0:01:15.5]} 28... Kd6
{[%clk 0:00:45.3]} 29. Rxa5 {[%clk 0:01:12.5]} 29... bxc3+ {[%clk 0:00:44.3]}
30. bxc3 {[%clk 0:01:12.7]} 30... Rb2+ {[%clk 0:00:43.7]} 31. Kd3 {[%clk
0:01:12.1]} 31... Rxh2 {[%clk 0:00:43.4]} 32. Ra6+ {[%clk 0:01:12]} 32... Kd7
{[%clk 0:00:42]} 33. Ra7+ {[%clk 0:01:11.3]} 33... Kd6 {[%clk 0:00:38.4]} 34. c4
{[%clk 0:00:58.4]} 34... Rh3+ {[%clk 0:00:35.4]} 35. Kd4 {[%clk 0:00:58.4]}
35... Rg3 {[%clk 0:00:32.3]} 36. Rxg7 {[%clk 0:00:52.7]} 36... h5 {[%clk
0:00:31.5]} 37. Rg6+ {[%clk 0:00:52.3]} 37... Kd7 {[%clk 0:00:28.6]} 38. gxh5
{[%clk 0:00:52.7]} 38... Rh3 {[%clk 0:00:25.1]} 39. Re5 {[%clk 0:00:25.7]} 39...
Rh4+ {[%clk 0:00:23.4]} 40. Kd5 {[%clk 0:00:25]} 40... Rcxc4 {[%clk 0:00:20.5]}
41. Rg7+ {[%clk 0:00:25.3]} 41... Kd8 {[%clk 0:00:19.6]} 42. Ke6 {[%clk
0:00:24.4]} 42... Rc6+ {[%clk 0:00:18.6]} 43. Kf7 {[%clk 0:00:24.6]} 43... Rc7+
{[%clk 0:00:18]} 44. Kg6 {[%clk 0:00:24.9]} 44... Rg4+ {[%clk 0:00:14]} 45. Kf6
{[%clk 0:00:15.4]} 45... Rgxg7 {[%clk 0:00:13.6]} 46. h6 {[%clk 0:00:14.7]}
46... Rgf7+ {[%clk 0:00:12.7]} 47. Kg6 {[%clk 0:00:14.8]} 47... Rh7 {[%clk
0:00:12.7]} 48. Rd5+ {[%clk 0:00:14.9]} 48... Kc8 {[%clk 0:00:12.5]} 49. Rd6
{[%clk 0:00:15.4]} 49... Kb7 {[%clk 0:00:12.2]} 50. a4 {[%clk 0:00:15.3]} 50...
Rh8 {[%clk 0:00:09.8]} 51. a5 {[%clk 0:00:14.6]} 51... Rch7 {[%clk 0:00:09.1]}
52. a6+ {[%clk 0:00:13.4]} 52... Ka7 {[%clk 0:00:08.8]} 53. Kg5 {[%clk
0:00:13.5]} 53... Rg8+ {[%clk 0:00:08.3]} 54. Kh5 {[%clk 0:00:13.2]} 54... Rg1
{[%clk 0:00:07.5]} 55. Rf6 {[%clk 0:00:12.9]} 55... Ra1 {[%clk 0:00:05.8]} 56.
Kg6 {[%clk 0:00:12.7]} 56... Rh8 {[%clk 0:00:03]} 57. Kg7 {[%clk 0:00:12.9]}
57... Rxh6 {[%clk 0:00:01.4]} 58. Rf7+ {[%clk 0:00:13.4]} 1-0